[Event "*** Titled Tuesday Blitz"]
[Site "Chess.com"]
[Date "2021.02.02"]
[Round "4"]
[White "jpS520"]
[Black "bylavochka"]
[Result "0-1"]
[WhiteElo "2258"]
[BlackElo "2092"]
[TimeControl "180+1"]
[EndTime "10:42:45 PST"]
[Termination "bylavochka won by resignation"]

1. e4 {[%clk 0:02:58.1]} 1... c5 {[%clk 0:03:00.3]} 2. Nf3 {[%clk 0:02:57.8]}
2... d6 {[%clk 0:03:00.9]} 3. Bb5+ {[%clk 0:02:56.9]} 3... Bd7 {[%clk
0:03:00.8]} 4. Bxd7+ {[%clk 0:02:56.5]} 4... Qxd7 {[%clk 0:03:01.7]} 5. O-O
{[%clk 0:02:56]} 5... Nf6 {[%clk 0:03:01.5]} 6. Qe2 {[%clk 0:02:55.8]} 6... e6
{[%clk 0:02:56.7]} 7. d4 {[%clk 0:02:55.1]} 7... cxd4 {[%clk 0:02:54.3]} 8. Nxd4
{[%clk 0:02:55.8]} 8... Be7 {[%clk 0:02:50.9]} 9. c4 {[%clk 0:02:55]} 9... O-O
{[%clk 0:02:50.5]} 10. Nc3 {[%clk 0:02:55.1]} 10... Nc6 {[%clk 0:02:50.4]} 11.
Rd1 {[%clk 0:02:54.8]} 11... a6 {[%clk 0:02:40.4]} 12. b3 {[%clk 0:02:54.5]}
12... Qc7 {[%clk 0:02:39.3]} 13. Bb2 {[%clk 0:02:54]} 13... Nxd4 {[%clk
0:02:29.8]} 14. Rxd4 {[%clk 0:02:53.4]} 14... Nd7 {[%clk 0:02:30.3]} 15. Rad1
{[%clk 0:02:52.1]} 15... Ne5 {[%clk 0:02:25.3]} 16. h3 {[%clk 0:02:51.5]} 16...
Nc6 {[%clk 0:02:22.2]} 17. R4d2 {[%clk 0:02:50.4]} 17... Rfd8 {[%clk 0:02:19.3]}
18. Rc1 {[%clk 0:02:48.4]} 18... Bg5 {[%clk 0:02:18.6]} 19. Qg4 {[%clk
0:02:42.3]} 19... Bxd2 {[%clk 0:01:59.3]} 20. Nd5 {[%clk 0:02:35.5]} 20... f5
{[%clk 0:01:59.8]} 21. Nf6+ {[%clk 0:02:02.4]} 21... Kh8 {[%clk 0:01:34.3]} 22.
Qh5 {[%clk 0:02:01]} 22... Bh6 {[%clk 0:01:33.5]} 23. Qxh6 {[%clk 0:01:45.4]}
23... gxh6 {[%clk 0:01:29]} 24. Ne8+ {[%clk 0:01:43.7]} 24... Kg8 {[%clk
0:01:28.3]} 25. Nxc7 {[%clk 0:01:42.9]} 25... Rac8 {[%clk 0:00:57.5]} 26. Nxe6
{[%clk 0:01:42.1]} 26... Re8 {[%clk 0:00:57.3]} 27. exf5 {[%clk 0:01:41.9]}
27... Ne7 {[%clk 0:00:33.3]} 28. f6 {[%clk 0:01:23]} 28... Kf7 {[%clk
0:00:26.9]} 29. Nf4 {[%clk 0:00:52.7]} 29... Ng6 {[%clk 0:00:18.5]} 30. Nd5
{[%clk 0:00:51]} 30... b5 {[%clk 0:00:19.1]} 31. Ba3 {[%clk 0:00:23]} 31... bxc4
{[%clk 0:00:15.5]} 32. bxc4 {[%clk 0:00:23.8]} 32... Ne5 {[%clk 0:00:11.8]} 33.
Bxd6 {[%clk 0:00:23.1]} 33... Nxc4 {[%clk 0:00:11.5]} 34. Be7 {[%clk 0:00:20]}
34... Ne5 {[%clk 0:00:05.5]} 35. Rb1 {[%clk 0:00:16]} 35... Rb8 {[%clk
0:00:04.5]} 36. Rc1 {[%clk 0:00:15.6]} 36... Rec8 {[%clk 0:00:04.4]} 37. Re1
{[%clk 0:00:15.7]} 37... Ng6 {[%clk 0:00:04.3]} 38. Bd6 {[%clk 0:00:14.1]} 38...
Rb5 {[%clk 0:00:04.4]} 39. Nc7 {[%clk 0:00:10.4]} 39... Rb6 {[%clk 0:00:04.6]}
40. Be7 {[%clk 0:00:09.1]} 40... Rxc7 {[%clk 0:00:04.4]} 41. Bd8 {[%clk
0:00:09.4]} 41... Rcb7 {[%clk 0:00:03.6]} 42. Bxb6 {[%clk 0:00:09.9]} 42... Rxb6
{[%clk 0:00:04.5]} 43. g4 {[%clk 0:00:10.4]} 43... Rxf6 {[%clk 0:00:04.8]} 44.
Kg2 {[%clk 0:00:10]} 44... Nf4+ {[%clk 0:00:04.9]} 45. Kg3 {[%clk 0:00:10.2]}
45... Nd3 {[%clk 0:00:04.6]} 46. Re2 {[%clk 0:00:10.2]} 46... Re6 {[%clk
0:00:04.6]} 47. Rd2 {[%clk 0:00:10.7]} 47... Nc5 {[%clk 0:00:04.3]} 48. h4
{[%clk 0:00:11.2]} 48... Ne4+ {[%clk 0:00:04.4]} 0-1

[Event "*** Titled Tuesday Blitz"]
[Site "Chess.com"]
[Date "2021.02.02"]
[Round "4"]
[White "CalinGheorghiu"]
[Black "flexova"]
[Result "1-0"]
[WhiteElo "2254"]
[BlackElo "2410"]
[TimeControl "180+1"]
[EndTime "10:42:47 PST"]
[Termination "CalinGheorghiu won by resignation"]

1. e4 {[%clk 0:03:00.9]} 1... e6 {[%clk 0:02:58.2]} 2. d4 {[%clk 0:03:00.3]}
2... d5 {[%clk 0:02:58.9]} 3. Nc3 {[%clk 0:03:00.3]} 3... Nf6 {[%clk 0:02:54.5]}
4. e5 {[%clk 0:03:00.5]} 4... Nfd7 {[%clk 0:02:54.9]} 5. f4 {[%clk 0:03:01.1]}
5... c5 {[%clk 0:02:55.1]} 6. Nf3 {[%clk 0:03:01.6]} 6... Nc6 {[%clk 0:02:55.4]}
7. Be3 {[%clk 0:03:01.6]} 7... a6 {[%clk 0:02:46.6]} 8. Qd2 {[%clk 0:02:53.2]}
8... b5 {[%clk 0:02:38.9]} 9. a3 {[%clk 0:02:49.8]} 9... Qb6 {[%clk 0:02:35]}
10. Rd1 {[%clk 0:02:33.8]} 10... Bb7 {[%clk 0:02:30.3]} 11. Ne2 {[%clk
0:02:27.9]} 11... b4 {[%clk 0:02:19.3]} 12. axb4 {[%clk 0:02:26]} 12... cxb4
{[%clk 0:02:15.2]} 13. f5 {[%clk 0:02:23]} 13... exf5 {[%clk 0:02:09]} 14. Nf4
{[%clk 0:02:21.1]} 14... Nd8 {[%clk 0:02:03.7]} 15. Bd3 {[%clk 0:02:19.1]} 15...
g6 {[%clk 0:02:01]} 16. h4 {[%clk 0:02:18.2]} 16... h5 {[%clk 0:01:48.2]} 17.
Ng5 {[%clk 0:02:13.5]} 17... Be7 {[%clk 0:01:43]} 18. e6 {[%clk 0:02:08.1]}
18... Bxg5 {[%clk 0:01:40.9]} 19. exd7+ {[%clk 0:02:06.9]} 19... Kxd7 {[%clk
0:01:41.4]} 20. hxg5 {[%clk 0:02:06.6]} 20... Ne6 {[%clk 0:01:41.4]} 21. O-O
{[%clk 0:02:00.6]} 21... Nxg5 {[%clk 0:01:32.6]} 22. c3 {[%clk 0:01:37]} 22...
h4 {[%clk 0:01:32.1]} 23. cxb4 {[%clk 0:01:25.4]} 23... h3 {[%clk 0:01:32.1]}
24. g3 {[%clk 0:01:13.4]} 24... Rae8 {[%clk 0:01:20.6]} 25. Rde1 {[%clk
0:01:02.4]} 25... Ne4 {[%clk 0:01:12.8]} 26. Qh2 {[%clk 0:00:52.3]} 26... Qxb4
{[%clk 0:00:59.8]} 27. Rc1 {[%clk 0:00:43.5]} 27... Nf6 {[%clk 0:00:53.3]} 28.
Bd2 {[%clk 0:00:14.6]} 28... Qxd4+ {[%clk 0:00:50.8]} 29. Qf2 {[%clk 0:00:13.9]}
29... Qxf2+ {[%clk 0:00:46]} 30. Kxf2 {[%clk 0:00:13.5]} 30... Ng4+ {[%clk
0:00:43.1]} 31. Kg1 {[%clk 0:00:13.8]} 31... h2+ {[%clk 0:00:43.1]} 32. Kh1
{[%clk 0:00:12.9]} 32... d4+ {[%clk 0:00:43.4]} 33. Ng2 {[%clk 0:00:13.4]} 33...
Rh3 {[%clk 0:00:36.5]} 34. Bf4 {[%clk 0:00:11.8]} 34... Ne3 {[%clk 0:00:34.2]}
35. Bxe3 {[%clk 0:00:08.3]} 35... Rxe3 {[%clk 0:00:35.1]} 36. Rxf5 {[%clk
0:00:07]} 36... Rxd3 {[%clk 0:00:31.7]} 37. Rxf7+ {[%clk 0:00:06.8]} 37... Kd6
{[%clk 0:00:19]} 38. Rxb7 {[%clk 0:00:07.4]} 38... Rhxg3 {[%clk 0:00:18.2]} 39.
Rb6+ {[%clk 0:00:07.7]} 39... Kd5 {[%clk 0:00:18.4]} 40. Nf4+ {[%clk 0:00:07.2]}
40... Ke4 {[%clk 0:00:16.6]} 41. Nxd3 {[%clk 0:00:07.6]} 41... Rxd3 {[%clk
0:00:15.5]} 42. Rxg6 {[%clk 0:00:07.9]} 42... Rd2 {[%clk 0:00:14.9]} 43. Rg2
{[%clk 0:00:08]} 43... Kd3 {[%clk 0:00:10.2]} 44. Rc6 {[%clk 0:00:03.2]} 44...
a5 {[%clk 0:00:05.3]} 45. Ra6 {[%clk 0:00:02.3]} 45... Rxg2 {[%clk 0:00:02.7]}
46. Kxg2 {[%clk 0:00:01.9]} 46... Kc2 {[%clk 0:00:03.6]} 47. Rxa5 {[%clk
0:00:02]} 47... Kxb2 {[%clk 0:00:04.2]} 48. Rd5 {[%clk 0:00:01.8]} 48... Kc3
{[%clk 0:00:04.2]} 49. Kxh2 {[%clk 0:00:02.4]} 49... d3 {[%clk 0:00:04.8]} 50.
Kg2 {[%clk 0:00:03.1]} 50... d2 {[%clk 0:00:02.6]} 51. Kf2 {[%clk 0:00:03.6]}
51... Kc2 {[%clk 0:00:03.1]} 52. Ke2 {[%clk 0:00:04.3]} 1-0

[Event "*** Titled Tuesday Blitz"]
[Site "Chess.com"]
[Date "2021.02.02"]
[Round "4"]
[White "KubaGepard"]
[Black "kagg1125"]
[Result "0-1"]
[WhiteElo "2329"]
[BlackElo "2588"]
[TimeControl "180+1"]
[EndTime "10:42:48 PST"]
[Termination "kagg1125 won by checkmate"]

1. e4 {[%clk 0:03:00.9]} 1... e5 {[%clk 0:02:57.3]} 2. Nf3 {[%clk 0:03:00.1]}
2... Nc6 {[%clk 0:02:57.3]} 3. d4 {[%clk 0:02:58.6]} 3... exd4 {[%clk
0:02:57.5]} 4. Bb5 {[%clk 0:02:58.7]} 4... a6 {[%clk 0:02:41.1]} 5. Ba4 {[%clk
0:02:51.4]} 5... Bc5 {[%clk 0:02:33.9]} 6. O-O {[%clk 0:02:44.8]} 6... Nge7
{[%clk 0:02:31.8]} 7. Nbd2 {[%clk 0:02:34.2]} 7... b5 {[%clk 0:02:24.8]} 8. Bb3
{[%clk 0:02:28.9]} 8... O-O {[%clk 0:02:23.7]} 9. a4 {[%clk 0:02:28.3]} 9... Bb7
{[%clk 0:02:19.5]} 10. Qe2 {[%clk 0:02:24.7]} 10... bxa4 {[%clk 0:02:09.8]} 11.
Rxa4 {[%clk 0:02:23.2]} 11... d5 {[%clk 0:02:10]} 12. e5 {[%clk 0:02:21.2]}
12... a5 {[%clk 0:02:01.4]} 13. Rd1 {[%clk 0:01:50.5]} 13... Ba6 {[%clk
0:01:59.5]} 14. Qe1 {[%clk 0:01:50.2]} 14... Bb5 {[%clk 0:01:59.5]} 15. Nf1
{[%clk 0:01:47]} 15... Bxa4 {[%clk 0:01:57.6]} 16. Bxa4 {[%clk 0:01:46.4]} 16...
Qb8 {[%clk 0:01:43.7]} 17. c3 {[%clk 0:01:37.9]} 17... dxc3 {[%clk 0:01:40.2]}
18. bxc3 {[%clk 0:01:38.8]} 18... Qb6 {[%clk 0:01:40]} 19. Ne3 {[%clk 0:01:37]}
19... Rad8 {[%clk 0:01:33.7]} 20. Ng4 {[%clk 0:01:30.4]} 20... Ng6 {[%clk
0:01:27.5]} 21. Qd2 {[%clk 0:01:26.7]} 21... d4 {[%clk 0:01:23]} 22. Bxc6 {[%clk
0:01:06.8]} 22... Qxc6 {[%clk 0:01:18.5]} 23. cxd4 {[%clk 0:01:07.2]} 23... Bb4
{[%clk 0:01:13.3]} 24. Qg5 {[%clk 0:01:05.1]} 24... h6 {[%clk 0:01:08.2]} 25.
Qh5 {[%clk 0:00:59.9]} 25... Ne7 {[%clk 0:00:28.8]} 26. Nh4 {[%clk 0:00:27.5]}
26... Qc2 {[%clk 0:00:23.8]} 27. Rf1 {[%clk 0:00:25.3]} 27... Bd2 {[%clk
0:00:21.6]} 28. Bxd2 {[%clk 0:00:19]} 28... Qxd2 {[%clk 0:00:22.5]} 29. Nf3
{[%clk 0:00:17.9]} 29... Qf4 {[%clk 0:00:21.4]} 30. g3 {[%clk 0:00:16.2]} 30...
Qf5 {[%clk 0:00:20.1]} 31. Qxh6 {[%clk 0:00:11.9]} 31... gxh6 {[%clk 0:00:19.8]}
32. Nxh6+ {[%clk 0:00:12.1]} 32... Kg7 {[%clk 0:00:20.7]} 33. Nxf5+ {[%clk
0:00:12.6]} 33... Nxf5 {[%clk 0:00:21.6]} 34. Rd1 {[%clk 0:00:12.2]} 34... Rd5
{[%clk 0:00:20.9]} 35. g4 {[%clk 0:00:11.4]} 35... Ne7 {[%clk 0:00:18.6]} 36.
Kf1 {[%clk 0:00:10.6]} 36... Rfd8 {[%clk 0:00:18.6]} 37. Ke2 {[%clk 0:00:11]}
37... c5 {[%clk 0:00:19]} 38. Ra1 {[%clk 0:00:10.9]} 38... cxd4 {[%clk 0:00:19]}
39. Kd3 {[%clk 0:00:11.3]} 39... Ng6 {[%clk 0:00:19.4]} 40. Ke4 {[%clk
0:00:11.3]} 40... d3 {[%clk 0:00:19.9]} 41. h4 {[%clk 0:00:11.1]} 41... d2
{[%clk 0:00:19.9]} 42. Rd1 {[%clk 0:00:11.4]} 42... Rc5 {[%clk 0:00:17.4]} 43.
h5 {[%clk 0:00:11.7]} 43... Nxe5 {[%clk 0:00:15]} 44. Nxe5 {[%clk 0:00:11.5]}
44... Rc1 {[%clk 0:00:15]} 45. h6+ {[%clk 0:00:10.3]} 45... Kh7 {[%clk
0:00:13.7]} 46. Rxd2 {[%clk 0:00:03.7]} 46... Rxd2 {[%clk 0:00:13.8]} 47. Nxf7
{[%clk 0:00:04.3]} 47... Rxf2 {[%clk 0:00:14]} 48. g5 {[%clk 0:00:04.4]} 48...
Rxf7 {[%clk 0:00:13.6]} 49. Ke5 {[%clk 0:00:04.2]} 49... Kg6 {[%clk 0:00:14.5]}
50. h7 {[%clk 0:00:03.5]} 50... Re1+ {[%clk 0:00:15.4]} 51. Kd6 {[%clk
0:00:03.6]} 51... Rxh7 {[%clk 0:00:16.3]} 52. Kd5 {[%clk 0:00:03.9]} 52... a4
{[%clk 0:00:16.7]} 53. Kc4 {[%clk 0:00:03.9]} 53... a3 {[%clk 0:00:17.6]} 54.
Kb3 {[%clk 0:00:04.2]} 54... a2 {[%clk 0:00:18.5]} 55. Kxa2 {[%clk 0:00:04.3]}
55... Rb7 {[%clk 0:00:19.2]} 56. Ka3 {[%clk 0:00:04.1]} 56... Re8 {[%clk
0:00:20.1]} 57. Ka4 {[%clk 0:00:03.5]} 57... Ra8# {[%clk 0:00:21]} 0-1

[Event "*** Titled Tuesday Blitz"]
[Site "Chess.com"]
[Date "2021.02.02"]
[Round "4"]
[White "FloMaster111"]
[Black "Ze-Pequeno"]
[Result "1-0"]
[WhiteElo "2482"]
[BlackElo "2220"]
[TimeControl "180+1"]
[EndTime "10:42:51 PST"]
[Termination "FloMaster111 won by checkmate"]

1. e4 {[%clk 0:02:58.9]} 1... c5 {[%clk 0:02:57.1]} 2. Nf3 {[%clk 0:02:58.9]}
2... d6 {[%clk 0:02:57]} 3. c3 {[%clk 0:02:58.6]} 3... Nf6 {[%clk 0:02:56.6]} 4.
Be2 {[%clk 0:02:58.9]} 4... Bg4 {[%clk 0:02:55.8]} 5. O-O {[%clk 0:02:57.4]}
5... Nc6 {[%clk 0:02:55.6]} 6. d3 {[%clk 0:02:56.4]} 6... e6 {[%clk 0:02:54]} 7.
h3 {[%clk 0:02:56.2]} 7... Bh5 {[%clk 0:02:53.6]} 8. d4 {[%clk 0:02:52.5]} 8...
cxd4 {[%clk 0:02:52.7]} 9. cxd4 {[%clk 0:02:53.4]} 9... Nxe4 {[%clk 0:02:44.9]}
10. d5 {[%clk 0:02:53.6]} 10... exd5 {[%clk 0:02:44.2]} 11. Qxd5 {[%clk
0:02:54.5]} 11... Nf6 {[%clk 0:02:44.1]} 12. Qb3 {[%clk 0:02:48.6]} 12... Qd7
{[%clk 0:02:29.7]} 13. Re1 {[%clk 0:02:39.1]} 13... Be7 {[%clk 0:02:28.4]} 14.
Nc3 {[%clk 0:02:36]} 14... O-O {[%clk 0:02:26.5]} 15. Bg5 {[%clk 0:02:36]} 15...
Rfe8 {[%clk 0:02:11.9]} 16. Rad1 {[%clk 0:02:33.7]} 16... Rad8 {[%clk
0:02:07.8]} 17. Nb5 {[%clk 0:02:13.1]} 17... a6 {[%clk 0:01:58.4]} 18. Bxf6
{[%clk 0:02:11.4]} 18... axb5 {[%clk 0:01:54.3]} 19. Bxe7 {[%clk 0:02:11.5]}
19... Rxe7 {[%clk 0:01:54.7]} 20. Bxb5 {[%clk 0:02:10.6]} 20... Qc7 {[%clk
0:01:43.6]} 21. Rxe7 {[%clk 0:02:02.3]} 21... Qxe7 {[%clk 0:01:44.5]} 22. Re1
{[%clk 0:02:01.5]} 22... Qf6 {[%clk 0:01:42.4]} 23. Qd5 {[%clk 0:01:52.4]} 23...
Bxf3 {[%clk 0:01:39.3]} 24. Qxf3 {[%clk 0:01:52.6]} 24... Qxf3 {[%clk 0:01:39]}
25. gxf3 {[%clk 0:01:52.8]} 25... Nd4 {[%clk 0:01:39.2]} 26. Be2 {[%clk
0:01:47.7]} 26... Kf8 {[%clk 0:01:11.9]} 27. Kf1 {[%clk 0:01:45.4]} 27... Rc8
{[%clk 0:01:10.3]} 28. Rd1 {[%clk 0:01:41.1]} 28... Nf5 {[%clk 0:01:02.5]} 29.
Rd5 {[%clk 0:01:31.6]} 29... g6 {[%clk 0:00:59.4]} 30. Bd3 {[%clk 0:01:29]}
30... Nh4 {[%clk 0:00:59.2]} 31. Ke2 {[%clk 0:01:08]} 31... Re8+ {[%clk
0:00:52.2]} 32. Kd1 {[%clk 0:01:05.7]} 32... Nxf3 {[%clk 0:00:45.8]} 33. Rxd6
{[%clk 0:01:05.9]} 33... Re1+ {[%clk 0:00:45.5]} 34. Kc2 {[%clk 0:01:04.3]}
34... Ne5 {[%clk 0:00:42.5]} 35. Bb5 {[%clk 0:01:00]} 35... Rh1 {[%clk
0:00:39.5]} 36. Rb6 {[%clk 0:00:55.3]} 36... Rxh3 {[%clk 0:00:38.1]} 37. Rxb7
{[%clk 0:00:55.6]} 37... Rf3 {[%clk 0:00:38.6]} 38. a4 {[%clk 0:00:54.5]} 38...
Rxf2+ {[%clk 0:00:37.8]} 39. Kb1 {[%clk 0:00:53.6]} 39... Nf3 {[%clk 0:00:33.2]}
40. a5 {[%clk 0:00:52.9]} 40... Nd2+ {[%clk 0:00:32.1]} 41. Ka2 {[%clk
0:00:52.3]} 41... Ne4 {[%clk 0:00:32.6]} 42. a6 {[%clk 0:00:51.5]} 42... Nc3+
{[%clk 0:00:15.8]} 43. Ka3 {[%clk 0:00:43.6]} 43... Nxb5+ {[%clk 0:00:13.2]} 44.
Rxb5 {[%clk 0:00:44.5]} 44... Rf1 {[%clk 0:00:13]} 45. Ra5 {[%clk 0:00:43.1]}
45... Rd1 {[%clk 0:00:09.9]} 46. a7 {[%clk 0:00:42.5]} 46... Rd8 {[%clk
0:00:10.8]} 47. Rb5 {[%clk 0:00:43]} 47... Ra8 {[%clk 0:00:11.4]} 48. Rb8+
{[%clk 0:00:43.9]} 48... Kg7 {[%clk 0:00:11.8]} 49. Rxa8 {[%clk 0:00:44.4]}
49... h5 {[%clk 0:00:11.9]} 50. Rd8 {[%clk 0:00:44.9]} 50... h4 {[%clk
0:00:11.2]} 51. a8=Q {[%clk 0:00:45.8]} 51... g5 {[%clk 0:00:12]} 52. Rg8+
{[%clk 0:00:45.1]} 52... Kf6 {[%clk 0:00:12]} 53. Qc6+ {[%clk 0:00:44.8]} 53...
Kf5 {[%clk 0:00:12.9]} 54. Qd5+ {[%clk 0:00:44.9]} 54... Kf4 {[%clk 0:00:13]}
55. Qxg5+ {[%clk 0:00:45]} 55... Kf3 {[%clk 0:00:13.9]} 56. Qg4+ {[%clk
0:00:45.2]} 56... Kf2 {[%clk 0:00:03.7]} 57. Qxh4+ {[%clk 0:00:46.1]} 57... Kf1
{[%clk 0:00:03.7]} 58. Qh1+ {[%clk 0:00:36.8]} 58... Ke2 {[%clk 0:00:04.6]} 59.
Rg2+ {[%clk 0:00:36.6]} 59... Kd3 {[%clk 0:00:05.3]} 60. Qh3+ {[%clk 0:00:36.9]}
60... Kc4 {[%clk 0:00:06.2]} 61. Rg4+ {[%clk 0:00:37.5]} 61... Kc5 {[%clk
0:00:05.8]} 62. Qc3+ {[%clk 0:00:37.7]} 62... Kd5 {[%clk 0:00:05.8]} 63. Rd4+
{[%clk 0:00:37.7]} 63... Ke6 {[%clk 0:00:06.7]} 64. Qe3+ {[%clk 0:00:38.5]}
64... Kf5 {[%clk 0:00:06.6]} 65. Rf4+ {[%clk 0:00:39.2]} 65... Kg5 {[%clk
0:00:06.5]} 66. Qg3+ {[%clk 0:00:40]} 66... Kh5 {[%clk 0:00:03]} 67. Rh4# {[%clk
0:00:40.9]} 1-0

[Event "*** Titled Tuesday Blitz"]
[Site "Chess.com"]
[Date "2021.02.02"]
[Round "4"]
[White "krasavetc"]
[Black "The_Machine04"]
[Result "1-0"]
[WhiteElo "2353"]
[BlackElo "2507"]
[TimeControl "180+1"]
[EndTime "10:42:51 PST"]
[Termination "krasavetc won by checkmate"]

1. e4 {[%clk 0:03:00.9]} 1... d6 {[%clk 0:02:53.9]} 2. Nc3 {[%clk 0:02:59.5]}
2... Nf6 {[%clk 0:02:52.3]} 3. Nf3 {[%clk 0:02:57.6]} 3... Nbd7 {[%clk
0:02:51.9]} 4. d4 {[%clk 0:02:57.7]} 4... e5 {[%clk 0:02:52]} 5. dxe5 {[%clk
0:02:55.3]} 5... dxe5 {[%clk 0:02:51.2]} 6. Bc4 {[%clk 0:02:54]} 6... Bc5 {[%clk
0:02:51.2]} 7. O-O {[%clk 0:02:52.5]} 7... c6 {[%clk 0:02:51]} 8. Bg5 {[%clk
0:02:50.9]} 8... h6 {[%clk 0:02:49.8]} 9. Bh4 {[%clk 0:02:49.4]} 9... Qc7 {[%clk
0:02:49]} 10. Bb3 {[%clk 0:02:45]} 10... O-O {[%clk 0:02:47.6]} 11. Qe2 {[%clk
0:02:45.1]} 11... b5 {[%clk 0:02:46.6]} 12. Rad1 {[%clk 0:02:43.7]} 12... a5
{[%clk 0:02:46.4]} 13. a3 {[%clk 0:02:41.9]} 13... a4 {[%clk 0:02:44.7]} 14. Ba2
{[%clk 0:02:41]} 14... Ba6 {[%clk 0:02:45.4]} 15. Qe1 {[%clk 0:02:34.9]} 15...
b4 {[%clk 0:02:40.6]} 16. Nxa4 {[%clk 0:02:33.7]} 16... Bxf1 {[%clk 0:02:37.1]}
17. Nxc5 {[%clk 0:02:33]} 17... Nxc5 {[%clk 0:02:37.3]} 18. Bxf6 {[%clk
0:02:32.3]} 18... gxf6 {[%clk 0:02:13.9]} 19. Qe3 {[%clk 0:02:07.1]} 19... Ne6
{[%clk 0:01:35.9]} 20. Rxf1 {[%clk 0:01:52.9]} 20... bxa3 {[%clk 0:01:20.9]} 21.
bxa3 {[%clk 0:01:36.1]} 21... Ng5 {[%clk 0:01:03.8]} 22. Nh4 {[%clk 0:01:23.8]}
22... Qa7 {[%clk 0:01:01.3]} 23. Qe2 {[%clk 0:01:14.2]} 23... Qxa3 {[%clk
0:00:48.6]} 24. Bb3 {[%clk 0:01:09.1]} 24... Rfd8 {[%clk 0:00:40.4]} 25. Qh5
{[%clk 0:01:06.9]} 25... Qf8 {[%clk 0:00:32.6]} 26. Nf5 {[%clk 0:01:02.8]} 26...
Kh7 {[%clk 0:00:31.9]} 27. h4 {[%clk 0:00:57.3]} 27... Ne6 {[%clk 0:00:32]} 28.
g3 {[%clk 0:00:49.5]} 28... Ra7 {[%clk 0:00:16.8]} 29. Ne3 {[%clk 0:00:41.6]}
29... Rad7 {[%clk 0:00:13.4]} 30. Ng4 {[%clk 0:00:37.8]} 30... Qg7 {[%clk
0:00:11.8]} 31. Qf5+ {[%clk 0:00:35.7]} 31... Qg6 {[%clk 0:00:10]} 32. Nxf6+
{[%clk 0:00:34.5]} 32... Kg7 {[%clk 0:00:10]} 33. Nxd7 {[%clk 0:00:29.3]} 33...
Rxd7 {[%clk 0:00:10.9]} 34. Qxe5+ {[%clk 0:00:28.6]} 34... Qf6 {[%clk
0:00:10.2]} 35. Qh5 {[%clk 0:00:24.6]} 35... Rd2 {[%clk 0:00:08.6]} 36. Qg4+
{[%clk 0:00:20.6]} 36... Qg6 {[%clk 0:00:08.1]} 37. Qf3 {[%clk 0:00:16.1]} 37...
h5 {[%clk 0:00:03.3]} 38. Qc3+ {[%clk 0:00:13.8]} 38... Kh7 {[%clk 0:00:01.7]}
39. Qxd2 {[%clk 0:00:13.1]} 39... Qg4 {[%clk 0:00:01.9]} 40. Bxe6 {[%clk
0:00:11.7]} 40... fxe6 {[%clk 0:00:01.7]} 41. Qf4 {[%clk 0:00:12.2]} 41... Qxf4
{[%clk 0:00:01.4]} 42. gxf4 {[%clk 0:00:12.1]} 42... Kg6 {[%clk 0:00:02.3]} 43.
Rd1 {[%clk 0:00:12.5]} 43... Kf6 {[%clk 0:00:03.2]} 44. Rd7 {[%clk 0:00:12.3]}
44... e5 {[%clk 0:00:03.1]} 45. f5 {[%clk 0:00:11.9]} 45... c5 {[%clk
0:00:02.7]} 46. Rd6+ {[%clk 0:00:11.6]} 46... Kf7 {[%clk 0:00:03.1]} 47. Rh6
{[%clk 0:00:11.7]} 47... c4 {[%clk 0:00:04]} 48. Rc6 {[%clk 0:00:09.9]} 48... c3
{[%clk 0:00:04.9]} 49. Rxc3 {[%clk 0:00:10.8]} 49... Kf6 {[%clk 0:00:05.4]} 50.
Rg3 {[%clk 0:00:11.1]} 50... Kf7 {[%clk 0:00:05.6]} 51. Rd3 {[%clk 0:00:10.7]}
51... Kf6 {[%clk 0:00:05.7]} 52. c4 {[%clk 0:00:11.5]} 52... Kf7 {[%clk
0:00:05.7]} 53. c5 {[%clk 0:00:12.4]} 53... Kf6 {[%clk 0:00:05.9]} 54. c6 {[%clk
0:00:13.3]} 54... Kf7 {[%clk 0:00:06.8]} 55. c7 {[%clk 0:00:14.2]} 55... Kf6
{[%clk 0:00:07.1]} 56. c8=Q {[%clk 0:00:14.1]} 56... Kg7 {[%clk 0:00:07.2]} 57.
Qe6 {[%clk 0:00:14.2]} 57... Kh7 {[%clk 0:00:07.2]} 58. Rd7+ {[%clk 0:00:13.7]}
58... Kh8 {[%clk 0:00:08.1]} 59. Qe8# {[%clk 0:00:14.6]} 1-0